bitfinex-derivatives/quotes_BNBF0:USTF0_20241225
["timestamp","ask_amount","ask_price","bid_price","bid_amount"]
[1735145611364,0.26226254,701.87,700.44,0.2855348]
[1735145611661,0.26226254,701.86,700.44,0.2855348]
[1735145611862,0.26226254,701.85,700.44,0.2855348]
[1735145612058,0.26226254,701.84,700.44,0.2855348]
[1735145612357,0.26228737,701.83,700.44,0.2855348]
[1735145612559,0.26228737,701.82,700.44,0.2855348]
[1735145612763,0.26228737,701.81,700.44,0.2855348]
[1735145612960,0.28494493,701.89,700.44,0.2855348]
[1735145613160,0.26229008,701.88,700.44,0.2855348]
[1735145614367,0.28495305,701.87,700.44,0.2855348]
[1735145614559,0.26229008,701.86,700.44,0.2855348]
[1735145615062,0.26229596,701.85,700.44,0.2855348]
[1735145615368,0.26229596,701.84,700.44,0.2855348]
[1735145615567,0.26229596,701.83,700.44,0.2855348]
[1735145615869,0.26229596,701.82,700.44,0.2855348]
[1735145616167,0.26229596,701.81,700.44,0.2855348]
[1735145616467,0.26229596,701.8,700.44,0.2855348]
[1735145616766,0.26229596,701.79,700.44,0.2855348]
[1735145616967,0.26229596,701.78,700.44,0.2855348]
[1735145617264,0.26229596,701.77,699.35,5.40226601]
[1735145617463,0.26229596,701.76,699.47,0.28593077]
[1735145617664,0.26229596,701.86,699.47,0.28593077]
[1735145617865,0.26229596,701.85,699.47,0.28593077]
[1735145618063,0.26229596,701.84,699.47,0.28593077]
[1735145618263,0.26229596,701.83,699.47,0.28593077]
[1735145618468,0.26229596,701.82,699.47,0.28593077]
[1735145618763,0.26229596,701.81,699.47,0.28593077]
[1735145618967,0.26229596,701.8,699.47,0.28593077]
[1735145619167,0.26229596,701.79,699.47,0.28593077]
[1735145619367,0.26229596,701.78,699.47,0.28593077]
[1735145619567,0.26229596,701.77,699.47,0.28593077]
[1735145619768,0.26229596,701.76,699.47,0.28593077]
[1735145619967,0.26229596,701.75,699.47,0.28593077]
[1735145620162,0.26229596,701.74,699.47,0.28593077]
[1735145620368,0.26229596,701.73,699.47,0.28593077]
[1735145620665,0.26233855,701.72,699.47,0.28593077]
[1735145620868,0.26233855,701.71,699.47,0.28593077]
[1735145621069,0.28495305,701.87,699.47,0.28593077]
[1735145621070,0.26233855,701.7,699.47,0.28593077]
[1735145621268,0.26233855,701.69,699.47,0.28593077]
[1735145621463,0.26233846,701.68,699.47,0.28593077]
[1735145621665,0.26233846,701.67,699.47,0.28593077]
[1735145621869,0.26233846,701.66,699.47,0.28593077]
[1735145622068,0.26233846,701.65,699.47,0.28593077]
[1735145622269,0.26233846,701.64,699.47,0.28593077]
[1735145622465,0.26233846,701.63,699.47,0.28593077]
[1735145622773,0.26233846,701.62,699.47,0.28593077]
[1735145622971,0.26233846,701.61,699.47,0.28593077]
[1735145623172,0.26233846,701.6,699.47,0.28593077]
[1735145623371,0.26234525,701.59,699.47,0.28593077]
[1735145623572,0.26234525,701.58,699.47,0.28593077]
[1735145623768,0.26234525,701.57,699.47,0.28593077]
[1735145623968,0.26234525,701.56,699.47,0.28593077]
[1735145624169,0.26234525,701.55,699.47,0.28593077]
[1735145624370,0.26234525,701.54,699.47,0.28593077]
[1735145624576,0.26234525,701.53,699.47,0.28593077]
[1735145624873,0.26234525,701.52,699.47,0.28593077]
[1735145625078,0.28495305,701.87,699.47,0.28593077]
[1735145625079,0.26234525,701.51,699.47,0.28593077]
[1735145625275,0.26234525,701.5,699.47,0.28593077]
[1735145625477,0.26234525,701.49,699.47,0.28593077]
[1735145625677,0.26234525,701.48,699.47,0.28593077]
[1735145625980,0.26234525,701.47,699.47,0.28593077]
[1735145626279,0.26233951,701.46,699.47,0.28593077]
[1735145626478,0.26233951,701.45,699.47,0.28593077]
[1735145626673,0.28495305,701.87,699.47,0.28593077]
[1735145626879,0.26234254,701.86,699.47,0.28593077]
[1735145627080,0.28496523,701.84,699.47,0.28593077]
[1735145627374,0.26234254,701.83,699.47,0.28593077]
[1735145627782,0.26234254,701.82,699.47,3.1099036]
[1735145628077,0.26234254,701.81,699.48,2.57242592]
[1735145628379,0.28496523,701.84,699.48,2.57242592]
[1735145628380,0.26234254,701.8,699.48,2.57242592]
[1735145628681,0.26234254,701.79,699.49,2.81933776]
[1735145628982,0.26234254,701.78,699.5,2.57242592]
[1735145629282,0.28496523,701.84,699.47,0.28593077]
[1735145629283,0.26234254,701.77,699.47,0.28593077]
[1735145629579,0.28496523,701.84,699.47,0.28593077]
[1735145629777,0.26231203,701.83,699.47,0.28593077]
[1735145637175,0.26232526,701.82,699.47,0.28593077]
[1735145637376,0.26233314,701.81,699.47,0.28593077]
[1735145637579,0.26233314,701.8,699.47,0.28593077]
[1735145637875,0.26233314,701.79,699.47,0.28593077]
[1735145638076,0.26234249,701.78,699.47,0.28593077]
[1735145638282,0.26234249,701.77,699.47,0.28593077]
[1735145638476,0.26234249,701.76,699.47,0.28593077]
[1735145638778,0.26234249,701.75,699.47,0.28593077]
[1735145639082,0.28496523,701.84,699.52,1.28279701]
[1735145639083,0.26234249,701.74,699.52,1.28279701]
[1735145639282,0.26234249,701.73,699.52,1.28279701]
[1735145639480,0.26234249,701.72,699.52,1.28279701]
[1735145639699,0.26234249,701.71,699.47,0.28593077]
[1735145639881,0.26234249,701.7,699.47,0.28593077]
[1735145640081,0.26235098,701.69,699.47,0.28593077]
[1735145640276,0.26235098,701.68,699.47,0.28593077]
[1735145640477,0.26235098,701.67,699.47,0.28593077]
[1735145640682,0.26235098,701.66,699.47,0.28593077]
[1735145640882,0.26235098,701.65,699.47,0.28593077]
[1735145641080,0.26235098,701.64,699.47,0.28593077]
[1735145641383,0.26235098,701.63,699.47,0.28593077]
[1735145641588,0.26235098,701.62,699.47,0.28593077]
[1735145641785,1.05554184,701.78,699.47,0.28593077]
[1735145641977,0.26237743,701.77,699.47,0.28593077]
[1735145642177,1.31791927,701.77,699.47,0.28593077]
[1735145642378,0.26237743,701.76,699.47,0.28593077]
[1735145642881,0.26237743,701.76,699.47,1.56872778]
[1735145643078,0.26237743,701.75,699.47,1.56872778]
[1735145643384,0.26237743,701.74,699.47,1.56872778]
[1735145643585,0.26237743,701.73,699.47,1.56872778]
[1735145643785,0.26237743,701.72,699.47,1.56872778]
[1735145643986,0.26237743,701.71,699.5,1.28279701]
[1735145644281,0.26237743,701.7,699.5,1.28279701]
[1735145644481,0.26237743,701.75,699.5,1.28279701]
[1735145644681,0.26237743,701.74,699.5,1.28279701]
[1735145644884,1.05554184,701.65,699.49,1.28279701]
[1735145645085,0.26237743,701.64,699.49,1.28279701]
[1735145645282,0.26237743,701.64,699.49,6.67710119]
[1735145645478,1.31791927,701.64,699.5,5.39430418]
[1735145645684,1.31791927,701.64,699.48,1.28279701]
[1735145645685,0.26237743,701.63,699.51,5.39430418]
[1735145645884,0.26237743,701.63,699.52,2.82187826]
[1735145646080,0.26237743,701.63,699.53,2.57242592]
[1735145646282,1.05554184,701.56,699.64,1.28279701]
[1735145646585,0.26237743,701.55,699.64,1.28279701]
[1735145647086,1.05554184,701.53,699.67,1.28279701]
[1735145647281,0.26237743,701.52,699.67,1.28279701]
[1735145647481,0.26235102,701.51,699.67,1.28279701]
[1735145647685,0.26235102,701.5,699.67,1.28279701]
[1735145647885,0.26235102,701.49,699.69,1.28279701]
[1735145648085,0.26235102,701.48,699.69,1.28279701]
[1735145648387,1.05554184,701.55,699.69,1.28279701]
[1735145648687,1.05554184,701.79,699.49,1.28279701]
[1735145648886,0.26232528,701.78,699.49,1.28279701]
[1735145649484,0.26232528,701.78,699.53,1.28279701]
[1735145649681,0.26232528,701.77,699.53,1.28279701]
[1735145649989,0.26232528,701.76,699.53,1.28279701]
[1735145650184,0.26231645,701.75,699.53,1.28279701]
[1735145650386,0.26231645,701.74,699.56,1.28279701]
[1735145650586,0.26231645,701.73,699.56,1.28279701]
[1735145650786,0.26231645,701.72,699.56,1.28279701]
[1735145650983,0.26231645,701.71,699.56,1.28279701]
[1735145651182,0.26231645,701.7,699.58,1.28279701]
[1735145651389,0.26231645,701.69,699.58,1.28279701]
[1735145651585,0.26231645,701.68,699.58,1.28279701]
[1735145651787,0.26231645,701.67,699.58,1.28279701]
[1735145651981,0.26231645,701.66,699.6,1.28279701]
[1735145652182,0.26231645,701.65,699.6,1.28279701]
[1735145652387,1.34050707,701.84,699.6,1.28279701]
[1735145652583,1.34050707,701.84,699.51,4.03950038]
[1735145652584,0.26230694,701.83,699.62,1.28279701]
[1735145652890,0.26226278,701.82,699.62,1.28279701]
[1735145653091,0.26226278,701.81,699.62,1.28279701]
[1735145653290,0.26226278,701.8,699.62,1.28279701]
[1735145653489,0.26226278,701.79,699.62,1.28279701]
[1735145653689,0.26225798,701.78,699.8,1.28279701]
[1735145654088,0.26225853,701.77,699.8,1.28279701]
[1735145654288,0.26225853,701.77,699.69,5.38538755]
[1735145654289,0.26225853,701.76,699.81,1.28279701]
[1735145654491,0.26225853,701.75,699.81,1.28279701]
[1735145654687,0.26225853,701.74,699.81,1.28279701]
[1735145654894,0.26225853,701.73,699.78,1.28279701]
[1735145655087,0.28496523,701.84,699.78,1.28279701]
[1735145655288,0.26225554,701.83,699.78,1.28279701]
[1735145655685,0.26225554,701.83,699.66,2.18253658]
[1735145655686,0.26225554,701.83,699.79,1.28279701]
[1735145656089,0.26225554,701.83,699.79,3.84569096]
[1735145656285,0.26225554,701.83,699.81,1.28279701]
[1735145656688,0.26225554,701.83,699.81,4.10726147]
[1735145656890,0.26225554,701.83,699.82,2.56289395]
[1735145657089,0.26225554,701.83,699.83,1.47733396]
[1735145657284,0.26225554,701.83,699.83,2.82509258]
[1735145657489,0.26225554,701.83,699.84,1.47777184]
[1735145657687,0.26225554,701.83,699.84,2.56289395]
[1735145658093,0.26225554,701.83,699.83,2.56289395]
[1735145658393,0.26225554,701.83,699.8,1.28279701]
[1735145658594,0.26225734,701.82,699.77,1.28279701]
[1735145658893,0.26225734,701.81,699.77,1.28279701]
[1735145659095,0.28496523,701.84,699.77,1.28279701]
[1735145659096,0.26225734,701.8,699.77,1.28279701]
[1735145659393,0.26225734,701.79,699.77,1.28279701]
[1735145659594,0.26225734,701.78,699.77,1.28279701]
[1735145659792,0.26225734,701.77,699.81,1.28279701]
[1735145659991,0.26225734,701.76,699.81,1.28279701]
[1735145660188,0.26225734,701.75,699.81,1.28279701]
[1735145660388,0.26225734,701.83,699.81,1.28279701]
[1735145660790,0.26224918,701.82,699.88,1.28279701]
[1735145660989,0.26224918,701.81,699.88,1.28279701]
[1735145661194,0.26224918,701.8,699.88,1.28279701]
[1735145661394,0.26224918,701.79,699.87,1.28279701]
[1735145661595,0.26224918,701.83,699.87,1.28279701]
[1735145661893,0.26224918,701.82,699.87,1.28279701]
[1735145662097,0.26224918,701.81,699.87,1.28279701]
[1735145662395,0.26224918,701.8,699.87,5.38885555]
[1735145662591,0.26224918,701.79,699.88,5.38885555]
[1735145662795,0.26224918,701.78,699.89,2.8259616]
[1735145662988,0.26224918,701.77,699.9,2.56289395]
[1735145663191,0.26224918,701.76,699.91,2.82735416]
[1735145663392,0.26224918,701.75,699.91,2.82735416]
[1735145663597,0.26224918,701.74,699.92,2.56289395]
[1735145663794,0.26224918,701.73,699.92,2.56289395]
[1735145663995,0.26224918,701.72,699.93,2.82879388]
[1735145664195,0.26224918,701.71,699.94,2.56289395]
[1735145664394,0.26224918,701.7,699.94,2.56289395]
[1735145664598,0.28496523,701.84,699.94,2.56289395]
[1735145664800,0.26225854,701.83,699.76,1.28279701]
[1735145665700,0.26225598,701.82,699.76,1.28279701]
[1735145665900,0.26225598,701.81,699.76,1.28279701]
[1735145666199,0.26225598,701.8,699.79,1.28279701]
[1735145666401,0.26225598,701.79,699.79,1.28279701]
[1735145666597,0.26225598,701.78,699.79,1.28279701]
[1735145666800,0.26225598,701.77,699.79,1.28279701]
[1735145667003,0.26225598,701.76,699.79,1.28279701]
[1735145667203,0.26226161,701.75,699.78,6.6750914]
[1735145667402,0.26226161,701.74,699.79,5.39229439]
[1735145667603,0.26226161,701.73,699.81,0.28579185]
[1735145667797,0.26226161,701.72,699.81,0.28579185]
[1735145668001,0.26226161,701.71,699.81,5.67808624]
[1735145668202,0.28496523,701.84,699.81,5.67808624]
[1735145668203,0.26226161,701.7,699.82,5.39229439]
[1735145668403,0.26226161,701.69,699.83,2.82940044]
[1735145668703,0.26226161,701.68,699.83,5.39229439]
[1735145668903,0.26226161,701.67,699.84,5.39229439]
[1735145669099,0.28496523,701.84,699.85,5.39229439]
[1735145669305,0.26226319,701.83,699.86,2.82940044]
[1735145669504,0.26226319,701.83,699.86,5.39229439]
[1735145669706,0.26226319,701.83,699.87,5.39229439]
[1735145669916,0.26226107,701.82,699.88,2.82940044]
[1735145670104,0.26226107,701.81,699.88,5.39229439]
[1735145670305,0.26226107,701.8,699.89,5.39229439]
[1735145670502,0.26226107,701.79,699.9,5.39229439]
[1735145670706,0.26225563,701.78,699.91,2.82940044]
[1735145670906,0.26225563,701.77,699.92,2.56289395]
[1735145671205,0.28496523,701.84,699.92,2.56289395]
[1735145671206,0.26225563,701.76,699.93,2.82940044]
[1735145671408,0.26225563,701.75,699.93,2.82940044]
[1735145671603,0.26225563,701.74,699.93,2.82940044]
[1735145671804,0.26225563,701.73,699.94,2.56289395]
[1735145672005,0.26225563,701.72,699.95,2.82940044]
[1735145672205,0.26225563,701.71,699.95,2.82940044]
[1735145672406,0.26225563,701.7,699.96,2.56289395]
[1735145672599,0.26225563,701.69,699.97,2.82940044]
[1735145672803,0.26225563,701.68,699.98,2.56289395]
[1735145673003,0.26225563,701.67,699.85,1.28279701]
[1735145673204,0.26225563,701.66,699.81,0.28579185]
[1735145673406,0.26225563,701.65,699.81,0.28579185]
[1735145673708,0.26225563,701.64,699.81,0.28579185]
[1735145674009,0.26225563,701.63,699.81,0.28579185]
[1735145674207,0.28496523,701.84,699.81,0.28579185]
[1735145674507,0.262278,701.83,699.81,0.28579185]
[1735145674907,0.262278,701.83,699.81,3.11681957]
[1735145675107,0.262278,701.83,699.82,2.56289395]
[1735145675309,0.262278,701.83,699.83,2.83102772]
[1735145675508,0.26227276,701.82,699.84,2.56289395]
[1735145675808,0.26227276,701.81,699.85,2.83102772]
[1735145676011,0.26227276,701.8,699.86,2.56289395]
[1735145676203,0.26227276,701.79,699.87,2.83102772]
[1735145676402,0.26227276,701.78,699.87,2.83102772]
[1735145676603,0.26227276,701.77,699.87,2.83102772]
[1735145676906,0.26227276,701.76,699.88,2.56289395]
[1735145677107,0.26227276,701.75,699.89,2.83102772]
[1735145677304,0.26227276,701.74,699.9,2.56289395]
[1735145677508,0.26227276,701.73,699.92,0.28574694]
[1735145677810,0.26227276,701.72,699.92,2.84864089]
[1735145678010,0.26227276,701.71,699.93,2.83102772]
[1735145678309,0.26227276,701.7,699.95,0.28573469]
[1735145678504,0.26227276,701.69,699.95,0.28573469]
[1735145678708,0.26227276,701.68,699.95,0.28573469]
[1735145678908,0.26227276,701.67,699.95,3.11676241]
[1735145679103,0.26226462,701.66,699.95,5.67965636]
[1735145679409,0.26226462,701.65,699.96,5.39392167]
[1735145679612,0.26226462,701.64,699.97,5.39392167]
[1735145679811,0.28496523,701.84,699.98,2.83102772]
[1735145679812,0.26226462,701.63,699.98,2.83102772]
[1735145680009,0.26226462,701.62,699.98,5.39392167]
[1735145680205,0.26226462,701.61,699.99,5.39392167]
[1735145680411,0.26226462,701.6,700.0,5.39392167]
[1735145680608,0.26226462,701.59,700.02,0.28570612]
[1735145680806,0.26226462,701.58,700.02,3.11673384]
[1735145681007,1.05554184,701.8,700.03,2.56289395]
[1735145681208,0.2622771,701.79,700.04,2.83102772]
[1735145681407,1.05554184,701.78,700.04,2.83102772]
[1735145681707,0.2622771,701.77,700.06,0.28568979]
[1735145682112,0.28499772,701.76,700.06,0.28568979]
[1735145682314,0.2622771,701.75,700.06,0.28568979]
[1735145682613,0.28500584,701.74,700.06,0.28568979]
[1735145682814,0.2622771,701.73,700.06,0.28568979]
[1735145683014,1.05554184,701.72,700.06,0.28568979]
[1735145683213,0.2622771,701.71,700.06,0.28568979]
[1735145683710,1.05554184,701.72,700.06,0.28568979]
[1735145684014,1.05554184,701.7,700.06,0.28568979]
[1735145684214,0.26231607,701.69,700.06,0.28568979]
[1735145684413,0.28503021,701.68,700.06,0.28568979]
[1735145684715,0.26231607,701.67,700.06,0.28568979]
[1735145685710,0.28503833,701.66,700.06,0.28568979]
[1735145685916,0.26231607,701.65,700.06,0.28568979]
[1735145686117,0.28504646,701.64,700.06,0.28568979]
[1735145686314,0.26231607,701.63,700.06,0.28568979]
[1735145686514,0.54738245,701.62,700.06,0.28568979]
[1735145686712,1.05554184,701.72,700.06,0.28568979]
[1735145686713,0.54738652,701.61,700.06,0.28568979]
[1735145686909,0.54739058,701.6,700.06,0.28568979]
[1735145687113,0.54739464,701.59,700.06,0.28568979]
[1735145687311,0.54739871,701.58,700.06,0.28568979]
[1735145687515,0.54740277,701.57,700.06,0.28568979]
[1735145687716,0.54740683,701.56,700.06,0.28568979]
[1735145687912,0.5474109,701.55,700.06,0.28568979]
[1735145688115,0.54741496,701.54,700.06,0.28568979]
[1735145688317,0.28508709,701.54,700.06,0.28568979]
[1735145698222,0.26232568,701.53,700.06,0.28568979]
[1735145698424,0.26231879,701.52,700.06,0.28568979]
[1735145698622,0.28508709,701.54,700.06,0.28568979]
[1735145700728,0.26232757,701.53,700.06,0.28568979]
[1735145702222,0.2623264,701.52,700.06,0.28568979]
[1735145702527,0.26232288,701.51,700.06,0.28568979]
[1735145702727,0.26232288,701.5,700.06,0.28568979]
[1735145702927,0.26232288,701.49,700.06,0.28568979]
[1735145703126,0.26232288,701.48,700.06,0.28568979]
[1735145703325,0.28508709,701.54,700.06,0.28568979]
[1735145703526,0.26232242,701.53,700.06,0.28568979]
[1735145703725,0.28508709,701.54,700.06,0.28568979]
[1735145729035,0.26228509,701.53,700.06,0.28568979]
[1735145729737,0.28508709,701.54,700.06,0.28568979]
[1735145736838,0.26229334,701.53,700.06,0.28568979]
[1735145738345,0.26230795,701.52,700.06,0.28568979]
[1735145738643,0.26230795,701.51,700.06,0.28568979]
[1735145738843,0.28508709,701.54,700.06,0.28568979]
[1735145785168,0.26230307,701.53,700.06,0.28568979]
[1735145785373,0.26231339,701.52,700.06,0.28568979]
[1735145785567,0.28508709,701.54,700.06,0.28568979]
[1735145785766,0.26230518,701.53,700.06,0.28568979]
[1735145786770,0.28508709,701.54,700.06,0.28568979]
[1735145786971,0.26229974,701.53,700.06,0.28568979]
[1735145792077,0.28508709,701.54,700.06,0.28568979]
[1735145792277,0.26230577,701.53,700.06,0.28568979]
[1735145793678,0.28508709,701.54,700.06,0.28568979]
[1735145793879,0.26230348,701.53,700.06,0.28568979]
[1735145795783,0.28508709,701.54,700.06,0.28568979]
[1735145795784,0.26230707,701.52,700.06,0.28568979]
[1735145795984,0.26230707,701.51,700.06,0.28568979]
[1735145796180,0.26230707,701.5,700.06,0.28568979]
[1735145796379,0.26230707,701.49,700.06,0.28568979]
[1735145796578,0.26230707,701.48,700.06,0.28568979]
[1735145796778,0.28508709,701.54,700.06,0.28568979]
[1735145796980,0.26230896,701.53,700.06,0.28568979]
[1735145798582,0.26230646,701.52,700.06,0.28568979]
[1735145798782,0.26230646,701.51,700.06,0.28568979]
[1735145798983,0.26230646,701.5,700.06,0.28568979]
[1735145799178,0.26230646,701.49,700.06,0.28568979]
[1735145799385,0.28508709,701.54,700.06,0.28568979]
[1735145809988,0.26230217,701.53,700.06,0.28568979]
[1735145810190,0.28508709,701.54,700.06,0.28568979]
[1735145826303,0.26235216,701.53,700.06,0.28568979]
[1735145826506,0.28508709,701.54,700.06,0.28568979]
[1735145831007,0.26234047,701.53,700.06,0.28568979]
[1735145831199,0.28509522,701.52,700.06,0.28568979]
[1735145831506,0.26234047,701.51,700.06,0.28568979]
[1735145831706,0.28509522,701.52,700.06,0.28568979]
[1735145831904,0.28510334,701.5,700.06,0.28568979]
[1735145840813,0.26238382,701.49,700.06,0.28568979]
[1735145841112,0.28511147,701.48,700.06,0.28568979]
[1735145841312,0.26238382,701.47,700.06,0.28568979]
[1735145841511,0.2851196,701.46,700.06,0.28568979]
[1735145841706,0.26238382,701.45,700.06,0.28568979]
[1735145841905,0.28512773,701.44,700.06,0.28568979]
[1735145842111,0.26238437,701.43,700.06,0.28568979]
[1735145842305,0.28513586,701.42,700.06,0.28568979]
[1735145842506,0.26238437,701.41,700.06,0.28568979]
[1735145842710,0.28514399,701.4,700.06,0.28568979]
[1735145843011,0.26238437,701.39,700.06,0.28568979]
[1735145843211,0.28515212,701.38,700.06,0.28568979]
[1735145843409,0.26238655,701.37,700.06,0.28568979]
[1735145843606,0.28516026,701.36,700.06,0.28568979]
[1735145843806,0.26238655,701.35,700.06,0.28568979]
[1735145845916,0.28516839,701.34,700.06,0.28568979]
[1735145846214,0.26238655,701.33,700.06,0.28568979]
[1735145846815,0.28517652,701.32,700.06,0.28568979]
[1735145847015,0.26238655,701.31,700.06,0.28568979]
[1735145847515,0.28518465,701.3,700.06,0.28568979]
[1735145847715,0.26238655,701.29,700.06,0.28568979]
[1735145848216,0.28519279,701.28,700.06,0.28568979]
[1735145848413,0.26238655,701.27,700.06,0.28568979]
[1735145848613,0.5475834,701.27,700.06,0.28568979]
[1735145848816,0.26238655,701.26,700.06,0.28568979]
[1735145850315,0.28519685,701.27,700.06,0.28568979]
[1735145850515,0.26242049,701.26,700.06,0.28568979]
[1735145853016,0.28519685,701.27,700.06,0.28568979]
[1735145853215,0.26242058,701.26,700.06,0.28568979]
[1735145853917,0.28519685,701.27,700.06,0.28568979]
[1735145988009,0.26245124,701.26,700.06,0.28568979]
[1735145988308,0.28520499,701.25,700.06,0.28568979]
[1735145988510,0.26245124,701.24,699.24,1.28279701]
[1735145988708,0.26245124,701.24,699.26,0.28601664]
[1735145989008,0.54769776,701.23,699.26,0.28601664]
[1735145989208,0.54770173,701.22,699.26,0.28601664]
[1735145989407,0.5477058,701.21,699.26,0.28601664]
[1735145989607,0.26248454,701.2,699.26,0.28601664]
[1735145990108,0.28522939,701.19,699.26,0.28601664]
[1735145990309,0.26248454,701.18,699.26,0.28601664]
[1735145990508,0.28523753,701.17,699.26,0.28601664]
[1735145993504,0.26248468,701.16,699.26,0.28601664]
[1735145993708,0.28524566,701.15,699.26,0.28601664]
[1735145998514,0.26248272,701.14,699.26,0.28601664]
[1735145998714,0.2852538,701.13,699.26,0.28601664]
[1735145998914,0.26248272,701.12,699.26,0.28601664]
[1735145999109,0.28526194,701.11,699.26,0.28601664]
[1735145999315,0.26248272,701.1,699.26,0.28601664]
[1735145999510,0.28527007,701.09,699.26,0.28601664]
[1735146003414,0.28527007,701.09,699.26,2.86413005]
[1735146003617,0.28527007,701.09,699.27,2.83461807]
[1735146003815,0.28527007,701.09,699.29,0.28600437]
[1735146004516,0.28527007,701.09,699.29,3.12062244]
[1735146004721,0.28527007,701.09,699.29,5.69873585]
[1735146004921,0.28527007,701.09,699.3,2.83461807]
[1735146005117,0.28527007,701.09,699.32,0.2859921]
[1735146005521,0.28527007,701.09,699.32,3.12061017]
[1735146005823,0.28527007,701.09,699.33,2.57811341]
[1735146006115,0.28527007,701.09,699.34,2.83461807]
[1735146006321,0.28527007,701.09,699.35,2.57811341]
[1735146006521,0.28527007,701.09,699.37,0.28597166]
[1735146006721,0.28527007,701.09,699.37,2.86408507]
[1735146007318,0.28527007,701.09,699.38,2.83221653]
[1735146007518,0.28527007,701.09,699.39,2.83221653]
[1735146007722,0.28527007,701.09,699.39,2.57811341]
[1735146007922,0.28527007,701.09,699.4,2.8323269]
[1735146008120,0.28527007,701.09,699.41,2.57811341]
[1735146008319,0.28527007,701.09,699.43,0.28594712]
[1735146023034,0.26247968,701.08,699.43,0.28594712]
[1735146023234,0.28527007,701.09,699.47,1.28279701]
[1735146023732,0.26247342,701.08,699.49,0.2859226]
[1735146023934,0.28527007,701.09,699.49,0.2859226]
[1735146025128,0.28527007,701.09,699.5,1.28279701]
[1735146025329,0.28527007,701.09,699.52,0.28591033]
[1735146029340,0.26246352,701.08,699.58,1.28279701]
[1735146029538,0.28527007,701.09,699.59,0.28588173]
[1735146030841,0.26246024,701.08,699.59,0.28588173]
[1735146031040,0.28527007,701.09,699.59,0.28588173]
[1735146031937,0.28527007,701.09,699.59,1.56867874]
[1735146032533,0.28527007,701.09,699.59,0.28588173]
[1735146033240,0.28527007,701.09,699.63,1.28279701]
[1735146033841,0.28527007,701.09,699.64,0.2858613]
[1735146065658,0.28527007,701.09,699.68,1.28279701]
[1735146066055,0.28527007,701.09,699.69,0.28584087]
[1735146067258,0.26248007,701.08,699.69,0.28584087]
[1735146067562,0.28527007,701.09,699.69,0.28584087]
[1735146067756,0.26248282,701.08,699.69,0.28584087]
[1735146068759,0.28527007,701.09,699.69,0.28584087]
[1735146076969,0.28527007,701.09,699.69,2.86761097]
[1735146077566,0.28527007,701.09,699.69,0.28584087]
[1735146078473,0.28527007,701.09,699.69,1.56863788]
[1735146080271,0.28527007,701.09,699.69,0.28584087]
[1735146080873,0.28527007,701.09,699.69,3.12663028]
[1735146081075,0.28527007,701.09,699.69,5.70840038]
[1735146081276,0.28527007,701.09,699.7,5.42255951]
[1735146081574,0.28527007,701.09,699.71,5.42255951]
[1735146081771,0.28527007,701.09,699.72,2.84078941]
[1735146081971,0.28527007,701.09,699.72,5.42255951]
[1735146082172,0.28527007,701.09,699.73,2.84078941]
[1735146082476,0.28527007,701.09,699.75,0.28581636]
[1735146082876,0.28527007,701.09,699.75,3.12660577]
[1735146083076,0.28527007,701.09,699.75,2.86758646]
[1735146083281,0.28527007,701.09,699.75,0.28581636]
[1735146094088,1.05554184,701.65,699.75,0.28581636]
[1735146094289,0.28504646,701.64,699.75,0.28581636]
[1735146096085,0.26232644,701.63,699.75,0.28581636]
[1735146096895,0.28504646,701.64,699.75,0.28581636]
[1735146097195,0.26229971,701.63,699.75,0.28581636]
[1735146097792,0.28504646,701.64,699.75,0.28581636]
[1735146097993,0.26229554,701.63,699.75,0.28581636]
[1735146098897,0.26229525,701.62,699.75,0.28581636]
[1735146099097,0.26229525,701.61,699.75,0.28581636]
[1735146099397,0.26229525,701.6,699.75,0.28581636]
[1735146099598,0.28504646,701.64,699.75,0.28581636]
[1735146102900,0.28504646,701.64,699.75,5.6941916]
[1735146103102,0.28504646,701.64,699.76,2.8340418]
[1735146103298,0.26226136,701.63,699.76,5.40837524]
[1735146103498,0.26226136,701.63,699.77,2.8340418]
[1735146103702,0.26226136,701.63,699.77,5.40837524]
[1735146103895,0.26226136,701.63,699.78,2.8340418]
[1735146104097,0.26226136,701.63,699.78,5.40837524]
[1735146104298,0.28504646,701.64,699.79,2.8340418]
[1735146104498,0.26226548,701.63,699.8,2.57433344]
[1735146104700,0.26226548,701.63,699.81,2.8340418]
[1735146104900,0.26226548,701.63,699.82,2.57433344]
[1735146105103,0.26226548,701.63,699.83,2.8340418]
[1735146105494,0.26226548,701.63,699.84,2.57433344]
[1735146105698,0.26226548,701.63,699.85,2.8340418]
[1735146106094,0.26226548,701.63,699.86,2.57433344]
[1735146106295,0.26226548,701.63,699.88,0.28576327]
[1735146106600,0.26226548,701.63,699.88,2.86009671]
[1735146106800,0.26226548,701.63,699.89,2.8340418]
[1735146107103,0.26225785,701.62,699.9,2.57433344]
[1735146107303,0.26225785,701.61,699.91,2.8340418]
[1735146107498,0.28504646,701.64,699.91,2.8340418]
[1735146107796,0.28504646,701.64,699.92,2.57433344]
[1735146107797,0.26225519,701.63,699.92,2.57433344]
[1735146107996,0.28504646,701.64,699.88,0.28576327]
[1735146121807,1.05554184,702.41,699.88,0.28576327]
[1735146122008,0.28474209,702.39,699.88,0.28576327]
[1735146122207,0.26215257,702.38,699.88,0.28576327]
[1735146122409,0.28474209,702.39,699.88,0.28576327]